[Event "Titled Tuesday Blitz August 15 Early 2023"]
[White "Bortnyk, Olexandr"]
[Black "Matlakov, Maxim"]
[WhiteFideId "14120828"]
[BlackFideId "4168003"]
[WhiteElo "3096"]
[BlackElo "2991"]
[Result "0-1"]
[Round "11"]
[TimeControl "180+1"]
[Date "2023.08.15"]
[WhiteClock "0:00:01"]
[BlackClock "0:00:15"]
[Board "4"]

1. e4 {[%clk 0:03:00]}  e5 {[%clk 0:02:58]} 2. Nf3 {[%clk 0:02:58]}  Nc6 {[%clk 0:02:58]} 3. Bb5 {[%clk 0:02:58]}  a6 {[%clk 0:02:58]} 4. Ba4 {[%clk 0:02:58]}  Nf6 {[%clk 0:02:59]} 5. Nc3 {[%clk 0:02:55]}  Bb4 {[%clk 0:02:58]} 6. Nd5 {[%clk 0:02:52]}  Nxd5 {[%clk 0:02:57]} 7. exd5 {[%clk 0:02:52]}  Nd4 {[%clk 0:02:57]} 8. c3 {[%clk 0:02:48]}  Nxf3+ {[%clk 0:02:56]} 9. Qxf3 {[%clk 0:02:49]}  Be7 {[%clk 0:02:48]} 10. O-O {[%clk 0:02:33]}  O-O {[%clk 0:02:48]} 11. d4 {[%clk 0:02:22]}  exd4 {[%clk 0:02:46]} 12. cxd4 {[%clk 0:02:23]}  d6 {[%clk 0:02:45]} 13. Be3 {[%clk 0:02:21]}  f5 {[%clk 0:02:37]} 14. Rac1 {[%clk 0:02:17]}  Bf6 {[%clk 0:02:36]} 15. h3 {[%clk 0:02:08]}  Bd7 {[%clk 0:02:22]} 16. Bc2 {[%clk 0:02:04]}  g6 {[%clk 0:02:18]} 17. Rfe1 {[%clk 0:02:00]}  Bg7 {[%clk 0:02:08]} 18. a4 {[%clk 0:01:57]}  f4 {[%clk 0:01:58]} 19. Bd2 {[%clk 0:01:23]}  Bxd4 {[%clk 0:01:57]} 20. b4 {[%clk 0:01:21]}  Qf6 {[%clk 0:01:51]} 21. a5 {[%clk 0:01:19]}  Rf7 {[%clk 0:01:48]} 22. Bd3 {[%clk 0:01:16]}  Rc8 {[%clk 0:01:46]} 23. Re4 {[%clk 0:01:09]}  Be5 {[%clk 0:01:46]} 24. Re2 {[%clk 0:00:55]}  g5 {[%clk 0:01:45]} 25. Bc3 {[%clk 0:00:47]}  Bxc3 {[%clk 0:01:36]} 26. Rxc3 {[%clk 0:00:48]}  Rg7 {[%clk 0:01:37]} 27. Rc4 {[%clk 0:00:45]}  Rf8 {[%clk 0:01:23]} 28. g4 {[%clk 0:00:39]}  fxg3 {[%clk 0:01:19]} 29. Qxf6 {[%clk 0:00:40]}  Rxf6 {[%clk 0:01:19]} 30. Rxc7 {[%clk 0:00:37]}  gxf2+ {[%clk 0:00:58]} 31. Rxf2 {[%clk 0:00:37]}  Rxf2 {[%clk 0:00:58]} 32. Kxf2 {[%clk 0:00:38]}  Bxh3 {[%clk 0:00:58]} 33. Rc3 {[%clk 0:00:39]}  Bd7 {[%clk 0:00:50]} 34. Be2 {[%clk 0:00:25]}  Rf7+ {[%clk 0:00:44]} 35. Kg3 {[%clk 0:00:24]}  Kg7 {[%clk 0:00:44]} 36. Bh5 {[%clk 0:00:22]}  Re7 {[%clk 0:00:37]} 37. Rc7 {[%clk 0:00:23]}  Kf6 {[%clk 0:00:38]} 38. Rxb7 {[%clk 0:00:23]}  Bb5 {[%clk 0:00:35]} 39. Rb6 {[%clk 0:00:08]}  Ke5 {[%clk 0:00:35]} 40. Bf3 {[%clk 0:00:08]}  Rc7 {[%clk 0:00:18]} 41. Kg4 {[%clk 0:00:07]}  h6 {[%clk 0:00:17]} 42. Rb8 {[%clk 0:00:07]}  Rc4+ {[%clk 0:00:18]} 43. Kh5 {[%clk 0:00:06]}  Rh4+ {[%clk 0:00:17]} 44. Kg6 {[%clk 0:00:06]}  g4 {[%clk 0:00:16]} 45. Bd1 {[%clk 0:00:03]}  g3 {[%clk 0:00:16]} 46. Bf3 {[%clk 0:00:02]}  g2 {[%clk 0:00:13]} 47. Bxg2 {[%clk 0:00:03]}  Rg4+ {[%clk 0:00:14]} 48. Kxh6 {[%clk 0:00:03]}  Rxg2 {[%clk 0:00:14]} 49. Kh5 {[%clk 0:00:01]}  Kxd5 {[%clk 0:00:15]} 50. Kh4 {[%clk 0:00:02]}  Kc4 {[%clk 0:00:15]} 51. Kh3 {[%clk 0:00:02]}  Rg6 {[%clk 0:00:14]} 52. Rd8 {[%clk 0:00:02]}  Kxb4 {[%clk 0:00:14]} 53. Kh4 {[%clk 0:00:03]}  Kxa5 {[%clk 0:00:14]} 54. Kh5 {[%clk 0:00:03]}  Re6 {[%clk 0:00:14]} 55. Kg5 {[%clk 0:00:04]}  Kb6 {[%clk 0:00:14]} 56. Kf5 {[%clk 0:00:04]}  Re5+ {[%clk 0:00:14]} 57. Kf4 {[%clk 0:00:05]}  Kc7 {[%clk 0:00:14]} 58. Ra8 {[%clk 0:00:05]}  Re8 {[%clk 0:00:13]} 59. Ra7+ {[%clk 0:00:05]}  Kb6 {[%clk 0:00:13]} 60. Rh7 {[%clk 0:00:05]}  Kc5 {[%clk 0:00:13]} 61. Rh5+ {[%clk 0:00:05]}  d5 {[%clk 0:00:14]} 62. Rh7 {[%clk 0:00:05]}  a5 {[%clk 0:00:14]} 63. Rc7+ {[%clk 0:00:05]}  Bc6 {[%clk 0:00:14]} 64. Ra7 {[%clk 0:00:05]}  a4 {[%clk 0:00:15]} 65. Kf3 {[%clk 0:00:01]}  Ra8 {[%clk 0:00:15]} 0-1


[Site "https://www.chess.com"]

[Event "Titled Tuesday Blitz August 15 Early 2023"]
[White "Bacrot, Etienne"]
[Black "Korobov, Anton"]
[WhiteFideId "605506"]
[BlackFideId "14105730"]
[WhiteElo "2901"]
[BlackElo "3026"]
[Result "0-1"]
[Round "11"]
[TimeControl "180+1"]
[Date "2023.08.15"]
[WhiteClock "0:00:00"]
[BlackClock "0:00:18"]
[Board "6"]

1. e4 {[%clk 0:03:00]}  c5 {[%clk 0:02:59]} 2. Nf3 {[%clk 0:03:01]}  d6 {[%clk 0:03:00]} 3. Bb5+ {[%clk 0:03:01]}  Nd7 {[%clk 0:02:59]} 4. d4 {[%clk 0:03:00]}  cxd4 {[%clk 0:02:59]} 5. Qxd4 {[%clk 0:03:00]}  a6 {[%clk 0:03:00]} 6. Be2 {[%clk 0:03:00]}  Ngf6 {[%clk 0:02:59]} 7. Nc3 {[%clk 0:03:00]}  e6 {[%clk 0:02:57]} 8. O-O {[%clk 0:03:00]}  Qc7 {[%clk 0:02:55]} 9. a4 {[%clk 0:02:58]}  b6 {[%clk 0:02:53]} 10. Rd1 {[%clk 0:02:58]}  Bb7 {[%clk 0:02:53]} 11. Be3 {[%clk 0:02:49]}  Be7 {[%clk 0:02:48]} 12. Nd2 {[%clk 0:02:39]}  Nc5 {[%clk 0:02:12]} 13. b4 {[%clk 0:02:28]}  Ncd7 {[%clk 0:02:07]} 14. Nc4 {[%clk 0:02:21]}  Rc8 {[%clk 0:02:06]} 15. Ra3 {[%clk 0:01:39]}  e5 {[%clk 0:01:26]} 16. Nxd6+ {[%clk 0:01:32]}  Bxd6 {[%clk 0:00:57]} 17. Qxd6 {[%clk 0:01:32]}  Qxd6 {[%clk 0:00:55]} 18. Rxd6 {[%clk 0:01:33]}  Ke7 {[%clk 0:00:55]} 19. Rd2 {[%clk 0:01:21]}  Nxe4 {[%clk 0:00:55]} 20. Nxe4 {[%clk 0:01:19]}  Bxe4 {[%clk 0:00:56]} 21. f3 {[%clk 0:00:50]}  Bb7 {[%clk 0:00:54]} 22. Rad3 {[%clk 0:00:49]}  Rhd8 {[%clk 0:00:52]} 23. Rd6 {[%clk 0:00:41]}  Rc6 {[%clk 0:00:49]} 24. Rxc6 {[%clk 0:00:30]}  Bxc6 {[%clk 0:00:50]} 25. Bxa6 {[%clk 0:00:20]}  Bxa4 {[%clk 0:00:50]} 26. c4 {[%clk 0:00:17]}  Bc6 {[%clk 0:00:50]} 27. Kf2 {[%clk 0:00:17]}  h6 {[%clk 0:00:50]} 28. g4 {[%clk 0:00:15]}  g5 {[%clk 0:00:47]} 29. h3 {[%clk 0:00:10]}  Rf8 {[%clk 0:00:42]} 30. b5 {[%clk 0:00:10]}  Ba8 {[%clk 0:00:42]} 31. Rxd7+ {[%clk 0:00:10]}  Kxd7 {[%clk 0:00:41]} 32. Bxb6 {[%clk 0:00:11]}  f5 {[%clk 0:00:40]} 33. Ke2 {[%clk 0:00:03]}  fxg4 {[%clk 0:00:40]} 34. fxg4 {[%clk 0:00:04]}  Rf3 {[%clk 0:00:23]} 35. c5 {[%clk 0:00:04]}  Rxh3 {[%clk 0:00:23]} 36. c6+ {[%clk 0:00:04]}  Bxc6 {[%clk 0:00:24]} 37. bxc6+ {[%clk 0:00:04]}  Kxc6 {[%clk 0:00:24]} 38. Bf2 {[%clk 0:00:05]}  e4 {[%clk 0:00:23]} 39. Bc8 {[%clk 0:00:05]}  Kd5 {[%clk 0:00:22]} 40. Bb7+ {[%clk 0:00:03]}  Ke5 {[%clk 0:00:22]} 41. Be3 {[%clk 0:00:04]}  Rh2+ {[%clk 0:00:21]} 42. Ke1 {[%clk 0:00:04]}  h5 {[%clk 0:00:21]} 43. gxh5 {[%clk 0:00:04]}  Rxh5 {[%clk 0:00:21]} 44. Bc8 {[%clk 0:00:04]}  Rh2 {[%clk 0:00:20]} 45. Bg4 {[%clk 0:00:03]}  Rg2 {[%clk 0:00:20]} 46. Be2 {[%clk 0:00:03]}  Rh2 {[%clk 0:00:18]} 47. Bxg5 {[%clk 0:00:03]}  Kd4 {[%clk 0:00:17]} 48. Bf6+ {[%clk 0:00:03]}  Ke3 {[%clk 0:00:18]} 49. Bf1 {[%clk 0:00:02]}  Rh1 {[%clk 0:00:18]} 50. Bg5+ {[%clk 0:00:03]}  Kf3 {[%clk 0:00:18]} 51. Bc1 {[%clk 0:00:00]}  e3 {[%clk 0:00:18]} 0-1


[Site "https://www.chess.com"]

[Event "Titled Tuesday Blitz August 15 Early 2023"]
[White "Kukhmazov, Arsen"]
[Black "Sadhwani, Raunak"]
[WhiteFideId "24108260"]
[BlackFideId "35093487"]
[WhiteElo "2876"]
[BlackElo "3007"]
[Result "0-1"]
[Round "11"]
[TimeControl "180+1"]
[Date "2023.08.15"]
[WhiteClock "0:00:00"]
[BlackClock "0:00:06"]
[Board "7"]

1. d4 {[%clk 0:03:00]}  g6 {[%clk 0:03:00]} 2. c4 {[%clk 0:03:00]}  Bg7 {[%clk 0:03:00]} 3. Nf3 {[%clk 0:03:01]}  Nf6 {[%clk 0:03:00]} 4. g3 {[%clk 0:03:01]}  O-O {[%clk 0:03:01]} 5. Bg2 {[%clk 0:03:01]}  d6 {[%clk 0:03:01]} 6. Nc3 {[%clk 0:03:02]}  c6 {[%clk 0:03:01]} 7. O-O {[%clk 0:03:02]}  Bf5 {[%clk 0:03:02]} 8. Ng5 {[%clk 0:03:03]}  h6 {[%clk 0:02:52]} 9. e4 {[%clk 0:03:02]}  Bg4 {[%clk 0:02:52]} 10. Nf3 {[%clk 0:03:03]}  Nbd7 {[%clk 0:02:52]} 11. Be3 {[%clk 0:03:00]}  e5 {[%clk 0:02:49]} 12. h3 {[%clk 0:02:55]}  Bxf3 {[%clk 0:02:49]} 13. Bxf3 {[%clk 0:02:56]}  exd4 {[%clk 0:02:50]} 14. Bxd4 {[%clk 0:02:57]}  Qe7 {[%clk 0:02:47]} 15. Bg2 {[%clk 0:02:37]}  a6 {[%clk 0:02:34]} 16. a4 {[%clk 0:02:27]}  a5 {[%clk 0:02:33]} 17. Qc2 {[%clk 0:02:17]}  Nc5 {[%clk 0:02:20]} 18. Rfe1 {[%clk 0:02:15]}  Ne6 {[%clk 0:02:19]} 19. Be3 {[%clk 0:02:15]}  Nd7 {[%clk 0:02:19]} 20. Rad1 {[%clk 0:02:12]}  Rfd8 {[%clk 0:02:09]} 21. f4 {[%clk 0:02:08]}  h5 {[%clk 0:01:59]} 22. h4 {[%clk 0:01:43]}  Nf6 {[%clk 0:01:56]} 23. f5 {[%clk 0:01:44]}  Nf8 {[%clk 0:01:52]} 24. Bf4 {[%clk 0:01:21]}  Ng4 {[%clk 0:01:48]} 25. Bf3 {[%clk 0:01:12]}  Ne5 {[%clk 0:01:48]} 26. Be2 {[%clk 0:01:12]}  Nfd7 {[%clk 0:01:42]} 27. Kg2 {[%clk 0:01:12]}  Nc5 {[%clk 0:01:37]} 28. Rd2 {[%clk 0:01:07]}  Rd7 {[%clk 0:01:35]} 29. Bd1 {[%clk 0:01:03]}  Nxc4 {[%clk 0:01:34]} 30. Rf2 {[%clk 0:01:02]}  Ne5 {[%clk 0:01:24]} 31. Bg5 {[%clk 0:00:54]}  f6 {[%clk 0:00:57]} 32. Bc1 {[%clk 0:00:35]}  Ncd3 {[%clk 0:00:58]} 33. Ref1 {[%clk 0:00:36]}  Nxf2 {[%clk 0:00:55]} 34. Rxf2 {[%clk 0:00:35]}  Qe8 {[%clk 0:00:53]} 35. fxg6 {[%clk 0:00:25]}  Qxg6 {[%clk 0:00:54]} 36. Rf5 {[%clk 0:00:26]}  Ng4 {[%clk 0:00:54]} 37. Qb3+ {[%clk 0:00:19]}  Qf7 {[%clk 0:00:39]} 38. Rxh5 {[%clk 0:00:20]}  Ne5 {[%clk 0:00:34]} 39. Qb6 {[%clk 0:00:18]}  d5 {[%clk 0:00:30]} 40. Rf5 {[%clk 0:00:16]}  Nc4 {[%clk 0:00:23]} 41. Qf2 {[%clk 0:00:16]}  d4 {[%clk 0:00:20]} 42. Nb1 {[%clk 0:00:11]}  Ne3+ {[%clk 0:00:15]} 43. Bxe3 {[%clk 0:00:11]}  dxe3 {[%clk 0:00:16]} 44. Qe1 {[%clk 0:00:11]}  Rad8 {[%clk 0:00:14]} 45. Nc3 {[%clk 0:00:07]}  Rd2+ {[%clk 0:00:11]} 46. Kh3 {[%clk 0:00:08]}  Qc4 {[%clk 0:00:09]} 47. Bf3 {[%clk 0:00:08]}  Qd3 {[%clk 0:00:06]} 48. Rf4 {[%clk 0:00:03]}  Rf2 {[%clk 0:00:06]} 49. Qg1 {[%clk 0:00:02]}  Qf1+ {[%clk 0:00:06]} 50. Qxf1 {[%clk 0:00:02]}  Rxf1 {[%clk 0:00:07]} 51. Kg2 {[%clk 0:00:03]}  Rf2+ {[%clk 0:00:07]} 52. Kh3 {[%clk 0:00:04]}  Rxb2 {[%clk 0:00:06]} 53. Be2 {[%clk 0:00:04]}  Rc2 {[%clk 0:00:06]} 54. Bc4+ {[%clk 0:00:00]}  Kf8 {[%clk 0:00:06]} 0-1


[Site "https://www.chess.com"]

[Event "Titled Tuesday Blitz August 15 Early 2023"]
[White "Makarian, Rudik"]
[Black "Nakamura, Hikaru"]
[WhiteFideId "44105681"]
[BlackFideId "2016192"]
[WhiteElo "2978"]
[BlackElo "3234"]
[Result "0-1"]
[Round "11"]
[TimeControl "180+1"]
[Date "2023.08.15"]
[WhiteClock "0:00:05"]
[BlackClock "0:00:09"]
[Board "8"]

1. d4 {[%clk 0:03:00]}  g6 {[%clk 0:02:58]} 2. c4 {[%clk 0:03:00]}  Bg7 {[%clk 0:02:58]} 3. Nf3 {[%clk 0:03:01]}  d6 {[%clk 0:02:59]} 4. Nc3 {[%clk 0:03:01]}  Nd7 {[%clk 0:02:56]} 5. e4 {[%clk 0:03:00]}  Ngf6 {[%clk 0:02:57]} 6. Be2 {[%clk 0:03:00]}  O-O {[%clk 0:02:57]} 7. O-O {[%clk 0:03:01]}  e5 {[%clk 0:02:57]} 8. Be3 {[%clk 0:03:01]}  c6 {[%clk 0:02:53]} 9. d5 {[%clk 0:03:00]}  c5 {[%clk 0:02:52]} 10. Ne1 {[%clk 0:02:59]}  Ne8 {[%clk 0:02:52]} 11. g3 {[%clk 0:02:54]}  f5 {[%clk 0:02:45]} 12. exf5 {[%clk 0:02:53]}  gxf5 {[%clk 0:02:46]} 13. Ng2 {[%clk 0:02:49]}  a6 {[%clk 0:02:43]} 14. Kh1 {[%clk 0:02:47]}  Nc7 {[%clk 0:02:35]} 15. Qd2 {[%clk 0:02:44]}  Rb8 {[%clk 0:02:33]} 16. a4 {[%clk 0:02:40]}  Nf6 {[%clk 0:02:26]} 17. Bg5 {[%clk 0:02:39]}  Qe8 {[%clk 0:02:23]} 18. f4 {[%clk 0:02:37]}  e4 {[%clk 0:02:21]} 19. Ne3 {[%clk 0:02:35]}  h6 {[%clk 0:02:21]} 20. Bh4 {[%clk 0:02:34]}  Bd7 {[%clk 0:02:18]} 21. Rg1 {[%clk 0:02:31]}  Kh8 {[%clk 0:02:13]} 22. Rg2 {[%clk 0:02:07]}  Qf7 {[%clk 0:01:51]} 23. Rag1 {[%clk 0:01:45]}  Rbe8 {[%clk 0:01:24]} 24. g4 {[%clk 0:01:22]}  fxg4 {[%clk 0:01:21]} 25. Nxg4 {[%clk 0:01:21]}  Bxg4 {[%clk 0:01:15]} 26. Bxg4 {[%clk 0:01:22]}  Nxg4 {[%clk 0:01:10]} 27. Rxg4 {[%clk 0:01:23]}  Bd4 {[%clk 0:01:11]} 28. f5 {[%clk 0:01:14]}  e3 {[%clk 0:01:11]} 29. Qg2 {[%clk 0:00:54]}  Rg8 {[%clk 0:01:07]} 30. Ne2 {[%clk 0:00:48]}  Rxg4 {[%clk 0:00:57]} 31. Qxg4 {[%clk 0:00:49]}  Rg8 {[%clk 0:00:58]} 32. Qxg8+ {[%clk 0:00:36]}  Qxg8 {[%clk 0:00:59]} 33. Rxg8+ {[%clk 0:00:37]}  Kxg8 {[%clk 0:01:00]} 34. b3 {[%clk 0:00:34]}  Ne8 {[%clk 0:01:00]} 35. Bg3 {[%clk 0:00:30]}  Be5 {[%clk 0:00:40]} 36. Bxe5 {[%clk 0:00:28]}  dxe5 {[%clk 0:00:41]} 37. Kg2 {[%clk 0:00:27]}  Nd6 {[%clk 0:00:41]} 38. Ng3 {[%clk 0:00:25]}  e4 {[%clk 0:00:19]} 39. Kf1 {[%clk 0:00:25]}  Kf7 {[%clk 0:00:17]} 40. Ke2 {[%clk 0:00:25]}  b5 {[%clk 0:00:17]} 41. cxb5 {[%clk 0:00:23]}  axb5 {[%clk 0:00:18]} 42. a5 {[%clk 0:00:23]}  c4 {[%clk 0:00:19]} 43. bxc4 {[%clk 0:00:19]}  b4 {[%clk 0:00:18]} 44. Kxe3 {[%clk 0:00:15]}  Nxc4+ {[%clk 0:00:18]} 45. Kd4 {[%clk 0:00:13]}  b3 {[%clk 0:00:18]} 46. Nxe4 {[%clk 0:00:12]}  b2 {[%clk 0:00:17]} 47. Nc3 {[%clk 0:00:12]}  Nxa5 {[%clk 0:00:18]} 48. Ke5 {[%clk 0:00:09]}  Nc4+ {[%clk 0:00:17]} 49. Kd4 {[%clk 0:00:10]}  Na3 {[%clk 0:00:17]} 50. Ke5 {[%clk 0:00:09]}  b1=Q {[%clk 0:00:16]} 51. Nxb1 {[%clk 0:00:09]}  Nxb1 {[%clk 0:00:17]} 52. d6 {[%clk 0:00:09]}  Nd2 {[%clk 0:00:14]} 53. Kd5 {[%clk 0:00:06]}  Nf3 {[%clk 0:00:11]} 54. h3 {[%clk 0:00:04]}  Ng5 {[%clk 0:00:09]} 55. Kc6 {[%clk 0:00:04]}  Kf6 {[%clk 0:00:08]} 56. Kc7 {[%clk 0:00:04]}  Nf7 {[%clk 0:00:08]} 57. d7 {[%clk 0:00:04]}  Ke7 {[%clk 0:00:05]} 58. Kc6 {[%clk 0:00:03]}  Ne5+ {[%clk 0:00:04]} 59. Kd5 {[%clk 0:00:03]}  Nxd7 {[%clk 0:00:05]} 60. Ke4 {[%clk 0:00:03]}  Kf6 {[%clk 0:00:05]} 61. Kf4 {[%clk 0:00:03]}  h5 {[%clk 0:00:05]} 62. Ke4 {[%clk 0:00:03]}  Nc5+ {[%clk 0:00:05]} 63. Kf4 {[%clk 0:00:03]}  Nb3 {[%clk 0:00:06]} 64. Ke4 {[%clk 0:00:02]}  Na5 {[%clk 0:00:06]} 65. Kf4 {[%clk 0:00:02]}  Nb7 {[%clk 0:00:07]} 66. Kg3 {[%clk 0:00:02]}  Kxf5 {[%clk 0:00:07]} 67. Kh4 {[%clk 0:00:03]}  Kg6 {[%clk 0:00:08]} 68. Kg3 {[%clk 0:00:04]}  Nd6 {[%clk 0:00:09]} 69. Kh4 {[%clk 0:00:05]}  Nf5# {[%clk 0:00:09]} 0-1


[Site "https://www.chess.com"]

[Event "Titled Tuesday Blitz August 15 Early 2023"]
[White "Sarana, Alexey"]
[Black "Hakobyan, Aram"]
[WhiteFideId "24133795"]
[BlackFideId "13306677"]
[WhiteElo "3077"]
[BlackElo "2959"]
[Result "1-0"]
[Round "11"]
[TimeControl "180+1"]
[Date "2023.08.15"]
[WhiteClock "0:00:04"]
[BlackClock "0:00:06"]
[Board "9"]

1. d4 {[%clk 0:02:51]}  Nf6 {[%clk 0:02:58]} 2. c4 {[%clk 0:02:51]}  a6 {[%clk 0:02:59]} 3. Nc3 {[%clk 0:02:50]}  b5 {[%clk 0:03:00]} 4. cxb5 {[%clk 0:02:41]}  axb5 {[%clk 0:03:01]} 5. Nxb5 {[%clk 0:02:41]}  e5 {[%clk 0:03:01]} 6. e3 {[%clk 0:02:38]}  e4 {[%clk 0:02:54]} 7. Ne2 {[%clk 0:02:37]}  c6 {[%clk 0:02:54]} 8. Nbc3 {[%clk 0:02:37]}  d5 {[%clk 0:02:55]} 9. Ng3 {[%clk 0:02:31]}  h5 {[%clk 0:02:54]} 10. h3 {[%clk 0:02:18]}  Bd6 {[%clk 0:02:54]} 11. Be2 {[%clk 0:02:14]}  h4 {[%clk 0:02:51]} 12. Nf1 {[%clk 0:02:13]}  O-O {[%clk 0:02:47]} 13. Nd2 {[%clk 0:02:09]}  Re8 {[%clk 0:02:43]} 14. O-O {[%clk 0:02:07]}  Nbd7 {[%clk 0:02:44]} 15. f4 {[%clk 0:02:06]}  Nf8 {[%clk 0:02:05]} 16. Qe1 {[%clk 0:01:54]}  Ng6 {[%clk 0:02:05]} 17. Nb3 {[%clk 0:01:55]}  Ba6 {[%clk 0:01:46]} 18. Bd2 {[%clk 0:01:49]}  Bxe2 {[%clk 0:01:34]} 19. Qxe2 {[%clk 0:01:50]}  Ne7 {[%clk 0:01:34]} 20. Be1 {[%clk 0:01:46]}  Nf5 {[%clk 0:01:34]} 21. Rc1 {[%clk 0:01:45]}  g6 {[%clk 0:01:29]} 22. Rc2 {[%clk 0:01:42]}  Nh5 {[%clk 0:01:28]} 23. Qd2 {[%clk 0:01:33]}  Nhg3 {[%clk 0:01:28]} 24. Bxg3 {[%clk 0:01:33]}  hxg3 {[%clk 0:01:25]} 25. a3 {[%clk 0:01:29]}  Qb6 {[%clk 0:01:20]} 26. Nc1 {[%clk 0:01:28]}  Reb8 {[%clk 0:01:17]} 27. N1e2 {[%clk 0:01:27]}  Qa6 {[%clk 0:01:16]} 28. Rd1 {[%clk 0:01:25]}  Rb3 {[%clk 0:01:13]} 29. Qc1 {[%clk 0:01:24]}  Rab8 {[%clk 0:01:08]} 30. Kh1 {[%clk 0:01:24]}  Kg7 {[%clk 0:01:08]} 31. Kg1 {[%clk 0:01:24]}  Bc7 {[%clk 0:01:03]} 32. Kh1 {[%clk 0:00:54]}  Ba5 {[%clk 0:01:02]} 33. Kg1 {[%clk 0:00:45]}  Qb7 {[%clk 0:01:03]} 34. Na4 {[%clk 0:00:32]}  Rxe3 {[%clk 0:00:52]} 35. Nc5 {[%clk 0:00:27]}  Qb5 {[%clk 0:00:46]} 36. a4 {[%clk 0:00:27]}  Qxe2 {[%clk 0:00:40]} 37. Rxe2 {[%clk 0:00:22]}  Rxe2 {[%clk 0:00:41]} 38. Kh1 {[%clk 0:00:12]}  Rbxb2 {[%clk 0:00:39]} 39. Rg1 {[%clk 0:00:12]}  Ne3 {[%clk 0:00:32]} 40. Nd7 {[%clk 0:00:13]}  Nxg2 {[%clk 0:00:11]} 41. Qc5 {[%clk 0:00:05]}  Nxf4 {[%clk 0:00:06]} 42. Qf8+ {[%clk 0:00:04]} 1-0


[Site "https://www.chess.com"]

[Event "Titled Tuesday Blitz August 15 Early 2023"]
[White "Kamsky, Gata"]
[Black "Andreikin, Dmitry"]
[WhiteFideId "2000024"]
[BlackFideId "4158814"]
[WhiteElo "2936"]
[BlackElo "3005"]
[Result "0-1"]
[Round "11"]
[TimeControl "180+1"]
[Date "2023.08.15"]
[WhiteClock "0:00:00"]
[BlackClock "0:00:53"]
[Board "12"]

1. d4 {[%clk 0:03:00]}  d5 {[%clk 0:02:55]} 2. Bf4 {[%clk 0:03:00]}  Nf6 {[%clk 0:02:54]} 3. e3 {[%clk 0:03:00]}  c5 {[%clk 0:02:52]} 4. c3 {[%clk 0:03:00]}  Nc6 {[%clk 0:02:53]} 5. Nd2 {[%clk 0:03:00]}  a6 {[%clk 0:02:52]} 6. Bd3 {[%clk 0:02:53]}  Bg4 {[%clk 0:02:51]} 7. Ngf3 {[%clk 0:02:47]}  e6 {[%clk 0:02:50]} 8. h3 {[%clk 0:02:37]}  Bxf3 {[%clk 0:02:48]} 9. Nxf3 {[%clk 0:02:35]}  Bd6 {[%clk 0:02:49]} 10. dxc5 {[%clk 0:02:31]}  Bxc5 {[%clk 0:02:45]} 11. O-O {[%clk 0:02:30]}  O-O {[%clk 0:02:44]} 12. Qc2 {[%clk 0:02:24]}  Bd6 {[%clk 0:02:40]} 13. Bg5 {[%clk 0:02:01]}  h6 {[%clk 0:02:40]} 14. Bxf6 {[%clk 0:01:53]}  Qxf6 {[%clk 0:02:39]} 15. Rad1 {[%clk 0:01:53]}  Rac8 {[%clk 0:02:39]} 16. Qe2 {[%clk 0:01:52]}  Ne5 {[%clk 0:02:34]} 17. Nxe5 {[%clk 0:01:51]}  Qxe5 {[%clk 0:02:35]} 18. g3 {[%clk 0:01:50]}  Rfd8 {[%clk 0:02:34]} 19. Kg2 {[%clk 0:01:48]}  g6 {[%clk 0:02:34]} 20. Bb1 {[%clk 0:01:43]}  Bc5 {[%clk 0:02:31]} 21. Qf3 {[%clk 0:01:34]}  Kg7 {[%clk 0:02:29]} 22. Rfe1 {[%clk 0:01:33]}  h5 {[%clk 0:02:29]} 23. h4 {[%clk 0:01:31]}  b5 {[%clk 0:02:25]} 24. a3 {[%clk 0:01:30]}  Bb6 {[%clk 0:02:24]} 25. Re2 {[%clk 0:01:27]}  Rc4 {[%clk 0:02:20]} 26. Red2 {[%clk 0:01:10]}  f5 {[%clk 0:02:05]} 27. Bd3 {[%clk 0:01:06]}  Rg4 {[%clk 0:02:04]} 28. Rh1 {[%clk 0:00:56]}  Rf8 {[%clk 0:02:02]} 29. Kf1 {[%clk 0:00:55]}  Bc5 {[%clk 0:01:43]} 30. Rh3 {[%clk 0:00:40]}  Rb8 {[%clk 0:01:38]} 31. Qe2 {[%clk 0:00:39]}  Qc7 {[%clk 0:01:24]} 32. Qd1 {[%clk 0:00:32]}  a5 {[%clk 0:01:19]} 33. Be2 {[%clk 0:00:31]}  Re4 {[%clk 0:01:17]} 34. Bd3 {[%clk 0:00:30]}  Rg4 {[%clk 0:01:15]} 35. Be2 {[%clk 0:00:30]}  Re4 {[%clk 0:01:16]} 36. Bd3 {[%clk 0:00:28]}  Re5 {[%clk 0:01:07]} 37. Rh1 {[%clk 0:00:19]}  b4 {[%clk 0:01:02]} 38. axb4 {[%clk 0:00:18]}  axb4 {[%clk 0:01:03]} 39. Kg2 {[%clk 0:00:16]}  bxc3 {[%clk 0:00:59]} 40. bxc3 {[%clk 0:00:17]}  Bxe3 {[%clk 0:00:59]} 41. fxe3 {[%clk 0:00:14]}  Rxe3 {[%clk 0:01:00]} 42. Rh3 {[%clk 0:00:12]}  Qxc3 {[%clk 0:01:00]} 43. Bf1 {[%clk 0:00:07]}  Rb3 {[%clk 0:00:54]} 44. Qc2 {[%clk 0:00:00]}  Rxg3+ {[%clk 0:00:53]} 0-1


[Site "https://www.chess.com"]

[Event "Titled Tuesday Blitz August 15 Early 2023"]
[White "Le, Tuan Minh"]
[Black "Timofeev, Artyom"]
[WhiteFideId "12401153"]
[BlackFideId "4140419"]
[WhiteElo "2991"]
[BlackElo "2848"]
[Result "1-0"]
[Round "11"]
[TimeControl "180+1"]
[Date "2023.08.15"]
[WhiteClock "0:00:11"]
[BlackClock "0:00:00"]
[Board "13"]

1. d4 {[%clk 0:02:58]}  Nf6 {[%clk 0:02:59]} 2. Nf3 {[%clk 0:02:59]}  g6 {[%clk 0:02:59]} 3. Bg5 {[%clk 0:02:59]}  Bg7 {[%clk 0:02:59]} 4. Nbd2 {[%clk 0:03:00]}  d6 {[%clk 0:02:57]} 5. c3 {[%clk 0:03:00]}  Nbd7 {[%clk 0:02:57]} 6. e4 {[%clk 0:03:01]}  e5 {[%clk 0:02:56]} 7. Bc4 {[%clk 0:02:50]}  O-O {[%clk 0:02:55]} 8. O-O {[%clk 0:02:51]}  c6 {[%clk 0:02:55]} 9. a4 {[%clk 0:02:51]}  a5 {[%clk 0:02:54]} 10. Re1 {[%clk 0:02:51]}  Qc7 {[%clk 0:02:52]} 11. Bb3 {[%clk 0:02:46]}  h6 {[%clk 0:02:51]} 12. Bh4 {[%clk 0:02:45]}  Nb6 {[%clk 0:02:42]} 13. h3 {[%clk 0:02:37]}  Nh5 {[%clk 0:02:40]} 14. Nf1 {[%clk 0:02:37]}  Nf4 {[%clk 0:02:25]} 15. Bg3 {[%clk 0:02:32]}  Nh5 {[%clk 0:02:22]} 16. Bh2 {[%clk 0:02:32]}  Re8 {[%clk 0:02:16]} 17. Qc2 {[%clk 0:02:25]}  c5 {[%clk 0:02:09]} 18. dxe5 {[%clk 0:02:17]}  dxe5 {[%clk 0:02:09]} 19. Qd2 {[%clk 0:02:04]}  c4 {[%clk 0:02:06]} 20. Bc2 {[%clk 0:02:04]}  Be6 {[%clk 0:02:05]} 21. Nd4 {[%clk 0:01:49]}  Bd7 {[%clk 0:01:59]} 22. Ne3 {[%clk 0:01:30]}  Rad8 {[%clk 0:01:55]} 23. Nd5 {[%clk 0:01:04]}  Qc5 {[%clk 0:01:41]} 24. Nf3 {[%clk 0:00:52]}  Bc6 {[%clk 0:01:35]} 25. Qe3 {[%clk 0:00:49]}  Qxe3 {[%clk 0:01:32]} 26. Nxe3 {[%clk 0:00:50]}  Nf4 {[%clk 0:01:27]} 27. Red1 {[%clk 0:00:44]}  Nd3 {[%clk 0:01:18]} 28. Nxc4 {[%clk 0:00:37]}  Nxc4 {[%clk 0:01:15]} 29. Rxd3 {[%clk 0:00:37]}  Rxd3 {[%clk 0:01:10]} 30. Bxd3 {[%clk 0:00:38]}  Nxb2 {[%clk 0:01:10]} 31. Bc2 {[%clk 0:00:39]}  Nc4 {[%clk 0:00:49]} 32. Bg3 {[%clk 0:00:39]}  Kh7 {[%clk 0:00:35]} 33. Bb3 {[%clk 0:00:35]}  Nd6 {[%clk 0:00:29]} 34. Nd2 {[%clk 0:00:36]}  Rd8 {[%clk 0:00:25]} 35. f3 {[%clk 0:00:36]}  f5 {[%clk 0:00:24]} 36. exf5 {[%clk 0:00:30]}  Nxf5 {[%clk 0:00:24]} 37. Be1 {[%clk 0:00:31]}  Rd3 {[%clk 0:00:22]} 38. Ne4 {[%clk 0:00:29]}  Rd8 {[%clk 0:00:12]} 39. Bf2 {[%clk 0:00:25]}  Rc8 {[%clk 0:00:12]} 40. Be6 {[%clk 0:00:25]}  Re8 {[%clk 0:00:11]} 41. Bf7 {[%clk 0:00:23]}  Rc8 {[%clk 0:00:11]} 42. Bb6 {[%clk 0:00:17]}  Bf8 {[%clk 0:00:09]} 43. Be6 {[%clk 0:00:13]}  Ra8 {[%clk 0:00:08]} 44. Kh2 {[%clk 0:00:12]}  Kg7 {[%clk 0:00:00]} 45. Bc7 {[%clk 0:00:11]} 1-0


[Site "https://www.chess.com"]